{"text_format":"1","workbook":"xlsx","n_sheets":2,"sheets":["Feuil1","Feuil3"],"not_rendered":{"charts":0,"images":1,"macros":1,"external_links":0,"defined_names":5,"comments":0,"pivot_tables":0},"unopened":[],"bounds":{"document_bytes":16777216,"sheet_cells":100000,"rows_first":2000,"rows_last":500,"rows_between":2000,"halvings":0,"cell_chars":16384,"cell_head_chars":4096},"cells_cut":0,"cells_raw":0,"read":"whole","date_system":"1900"}

{"sheet":"Feuil1","index":0,"n_rows":47,"n_cols":47,"rows_kept":47,"cut":false,"hidden":false,"merged":[[8,25,8,30],[8,31,8,36],[8,37,8,42],[7,0,8,0],[8,1,8,6],[8,7,8,12],[8,13,8,18],[8,19,8,24],[7,31,7,36],[7,37,7,42],[7,1,7,6],[7,7,7,12],[7,13,7,18],[7,19,7,24],[7,25,7,30]]}
[]
[]
[]
[]
[]
[]
[null,null,null,null,null,null,null,null,null,null,null,null,null,null,null,null,null,null,null,null,null,null,null,null,null,null,null,null,null,null,null,null,null,null,null,null,null,null,null,null,null,null,null,null,"noms","Nb heures par occurrence de prénom","Nb heures par occurrence de couleur"]
[6,"lundi",null,null,null,null,null,"mardi",null,null,null,null,null,"mercredi",null,null,null,null,null,"jeudi",null,null,null,null,null,"vendredi",null,null,null,null,null,"samedi",null,null,null,null,null,"dimanche",null,null,null,null,null,null,"Clothilde",{"$f":"COUNTIF(Plage_horaire,AS8)/24","v":0},{"$f":"NbColorSameAs(Plage_horaire,AS8)/2","v":19}]
[null,{"$f":"DATE(YEAR(TODAY()),1,0)-MOD(DATE(YEAR(TODAY()),1,0)+5,7)+7*(A8-1)","v":"2016-02-01"},null,null,null,null,null,{"$f":"B9+1","v":"2016-02-02"},null,null,null,null,null,{"$f":"H9+1","v":"2016-02-03"},null,null,null,null,null,{"$f":"N9+1","v":"2016-02-04"},null,null,null,null,null,{"$f":"T9+1","v":"2016-02-05"},null,null,null,null,null,{"$f":"Z9+1","v":"2016-02-06"},null,null,null,null,null,{"$f":"AF9+1","v":"2016-02-07"},null,null,null,null,null,null,"Bruno",0,{"$f":"NbColorSameAs(Plage_horaire,AS9)/2","v":8}]
["7h",null,null,null,null,null,null,null,null,null,null,null,null,null,null,null,null,null,null,null,null,null,null,null,null,null,null,null,null,null,null,null,null,null,null,null,null,null,null,null,null,null,null,null,"Mehdi",0,{"$f":"NbColorSameAs(Plage_horaire,AS10)/2","v":9}]
[30,null,null,null,null,null,null,null,null,null,null,null,null,null,null,null,null,null,null,null,null,null,null,null,null,null,null,null,null,null,null,null,null,null,null,null,null,null,null,null,null,null,null,null,"Stéphane",0,{"$f":"NbColorSameAs(Plage_horaire,AS11)/2","v":3.5}]
["8h",null,null,null,null,null,null,null,null,null,null,null,null,null,null,null,null,null,null,null,null,null,null,null,null,null,null,null,null,null,null,null,null,null,null,null,null,null,null,null,null,null,null,null,"Yoann",0,{"$f":"NbColorSameAs(Plage_horaire,AS12)/2","v":0}]
[30,null,null,null,null,null,null,null,null,null,null,null,null,null,null,null,null,null,null,null,null,null,null,null,null,null,null,null,null,null,null,null,null,null,null,null,null,null,null,null,null,null,null,null,"Killian",0,{"$f":"NbColorSameAs(Plage_horaire,AS13)/2","v":15}]
["9h",null,null,null,null,null,null,null,null,null,null,null,null,null,null,null,null,null,null,null,null,null,null,null,null,null,null,null,null,null,null,null,null,null,null,null,null,null,null,null,null,null,null,null,"Benjamin",0,{"$f":"NbColorSameAs(Plage_horaire,AS14)/2","v":9.5}]
[30,null,null,null,null,null,null,null,null,null,null,null,null,null,null,null,null,null,null,null,null,null,null,null,null,null,null,null,null,null,null,null,null,null,null,null,null,null,null,null,null,null,null,null,"Nicolas CDDI",0,{"$f":"NbColorSameAs(Plage_horaire,AS15)/2","v":8}]
["10h",null,null,null,null,null,null,null,null,null,null,null,null,null,null,null,null,null,null,null,null,null,null,null,null,null,null,null,null,null,null,null,null,null,null,null,null,null,null,null,null,null,null,null,"Khalid CDDI ",0,{"$f":"NbColorSameAs(Plage_horaire,AS16)/2","v":0}]
[30,null,null,null,null,null,null,null,null,null,null,null,null,null,null,null,null,null,null,null,null,null,null,null,null,null,null,null,null,null,null,null,null,null,null,null,null,null,null,null,null,null,null,null,"Corinne",0,{"$f":"NbColorSameAs(Plage_horaire,AS17)/2","v":0}]
["11h",null,null,null,null,null,null,null,null,null,null,null,null,null,null,null,null,null,null,null,null,null,null,null,null,null,null,null,null,null,null,null,null,null,null,null,null,null,null,null,null,null,null,null,"Léo",0,{"$f":"NbColorSameAs(Plage_horaire,AS18)/2","v":0}]
[30,null,null,null,null,null,null,null,null,null,null,null,null,null,null,null,null,null,null,null,null,null,null,null,null,null,null,null,null,null,null,null,null,null,null,null,null,null,null,null,null,null,null,null,"Dimitri",0,{"$f":"NbColorSameAs(Plage_horaire,AS19)/2","v":0}]
["12h",null,null,null,null,null,null,null,null,null,null,null,null,null,null,null,null,null,null,null,null,null,null,null,null,null,null,null,null,null,null,null,null,null,null,null,null,null,null,null,null,null,null,null,"Simon",0,{"$f":"NbColorSameAs(Plage_horaire,AS20)/2","v":0}]
[30,null,null,null,null,null,null,null,null,null,null,null,null,null,null,null,null,null,null,null,null,null,null,null,null,null,null,null,null,null,null,null,null,null,null,null,null,null,null,null,null,null,null,null,"Elias",0,{"$f":"NbColorSameAs(Plage_horaire,AS21)/2","v":5.5}]
["13h",null,null,null,null,null,null,null,null,null,null,null,null,null,null,null,null,null,null,null,null,null,null,null,null,null,null,null,null,null,null,null,null,null,null,null,null,null,null,null,null,null,null,null,"Rédouane",0,{"$f":"NbColorSameAs(Plage_horaire,AS22)/2","v":9.5}]
[30,null,null,null,null,null,null,null,null,null,null,null,null,null,null,null,null,null,null,null,null,null,null,null,null,null,null,null,null,null,null,null,null,null,null,null,null,null,null,null,null,null,null,null,"Lilou",0,{"$f":"NbColorSameAs(Plage_horaire,AS23)/2","v":11}]
["14h"]
[30,null,null,null,null,null,null,null,null,null,null,null,null,null,null,null,null,null,null,null,null,null,null,null,null,null,null,null,null,null,null,null,null,null,null,null,null,null,null,null,null,null,null,null,"EFFACER"]
["15h"]
[30]
["16h"]
[30]
["17h"]
[30]
["18h"]
[30]
["19h"]
[30]
["20h"]
[30]
["21h"]
[30]
["22h"]
[30]
["23h"]
[30]
["0h"]
[30]
["1h"]
[30]

{"sheet":"Feuil3","index":1,"n_rows":0,"n_cols":0,"rows_kept":0,"cut":false,"hidden":false,"merged":[]}